[Event "7th Uppsala Young Champions"]
[Site "Uppsala"]
[Date "2020.10.26"]
[Round "6.5"]
[White "Muetsch, Annmarie"]
[Black "Blohberger, Felix"]
[Result "0-1"]
[ECO "B15"]
[WhiteElo "2226"]
[BlackElo "2467"]
[Annotator "ChessBase"]
[PlyCount "68"]
[EventDate "2020.10.23"]
[EventType "swiss"]
[EventCountry "SWE"]
[SourceTitle "playchess.com"]
[Source "ChessBase"]
[SourceQuality "1"]
[TimeControl "5400+30"]

1. e4 {[%emt 0:00:00]} c6 {[%emt 0:01:02]} 2. Nc3 {[%emt 0:00:24]} d5 {[%emt 0:00:06]} 3. Nf3 {[%emt 0:00:34]} g6 {[%emt 0:01:00]} 4. d4 {[%emt 0:01:08]} Bg7 {[%emt 0:00:05]} 5. h3 {[%emt 0:00:37]} dxe4 {[%emt 0:00:19]} 6. Nxe4 {[%emt 0:00:08]} Nf6 {[%emt 0:00:03]} 7. Nxf6+ {[%emt 0:03:35]} exf6 {[%emt 0:00:08]} 8. Bc4 {[%emt 0:02:39]} O-O {[%emt 0:01:18]} 9. O-O {[%emt 0:01:44]} a5 {[%emt 0:03:08]} 10. a4 {[%emt 0:04:58]} Na6 {[%emt 0:01:02]} 11. Bf4 {[%emt 0:02:19]} Nc7 {[%emt 0:00:43]} 12. Qd2 {[%emt 0:01:40]} Nd5 {[%emt 0:04:59]} 13. Bh6 {[%emt 0:08:05]} Be6 {[%emt 0:00:35]} 14. Bb3 {[%emt 0:03:15]} Qb6 {[%emt 0:02:07]} 15. Rfe1 {[%emt 0:02:50]} Rfd8 {[%emt 0:03:45]} 16. Rad1 {[%emt 0:03:16]} Nc7 {[%emt 0:07:42]} 17. Bxg7 {[%emt 0:07:52]} Kxg7 {[%emt 0:00:49]} 18. Bxe6 {[%emt 0:00:27]} Nxe6 {[%emt 0:00:06]} 19. c3 {[%emt 0:04:03]} Qb3 {[%emt 0:00:40]} 20. Nh2 {[%emt 0:01:29]} h5 {[%emt 0:00:47]} 21. f4 {[%emt 0:00:42]} Rd5 {[%emt 0:14:16]} 22. Nf3 {[%emt 0:04:00]} Rad8 {[%emt 0:03:37]} 23. Nh4 {[%emt 0:06:45]} f5 {[%emt 0:06:16]} 24. Nf3 {[%emt 0:00:43]} c5 {[%emt 0:05:39]} 25. Rxe6 {[%emt 0:01:52]} fxe6 {[%emt 0:00:19]} 26. Re1 {[%emt 0:02:28]} cxd4 {[%emt 0:12:56]} 27. cxd4 {[%emt 0:01:19]} R8d6 {[%emt 0:04:31]} 28. Qf2 {[%emt 0:01:37]} Qxa4 {[%emt 0:01:57]} 29. Qh4 {[%emt 0:07:57]} Qe8 {[%emt 0:02:19]} 30. Re3 {[%emt 0:01:16]} Rxd4 {[%emt 0:04:07]} 31. Rc3 {[%emt 0:11:37]} Qd8 {[%emt 0:03:17]} 32. Qg3 {[%emt 0:02:53]} Rd3 {[%emt 0:01:20]} 33. Rxd3 {[%emt 0:00:46]} Rxd3 {[%emt 0:00:20]} 34. Qf2 {[%emt 0:00:31]} Qd6 {[%emt 0:01:43]} 0-1

[Event "7th Uppsala Young Champions"]
[Site "Uppsala"]
[Date "2020.10.26"]
[Round "6.6"]
[White "Seo, Jung Min"]
[Black "Trost, Edvin"]
[Result "1-0"]
[ECO "C77"]
[WhiteElo "2455"]
[BlackElo "2202"]
[Annotator "ChessBase"]
[PlyCount "111"]
[EventDate "2020.10.23"]
[EventType "swiss"]
[EventCountry "SWE"]
[SourceTitle "playchess.com"]
[Source "ChessBase"]
[SourceQuality "1"]
[TimeControl "5400+30"]

1. e4 {[%emt 0:00:00]} e5 {[%emt 0:00:00]} 2. Nf3 {[%emt 0:00:00]} Nc6 {[%emt 0:00:01]} 3. Bb5 {[%emt 0:00:00]} a6 {[%emt 0:00:19]} 4. Ba4 {[%emt 0:00:00]} Nf6 {[%emt 0:00:10]} 5. O-O {[%emt 0:00:21]} Be7 {[%emt 0:00:21]} 6. d3 {[%emt 0:02:19]} b5 {[%emt 0:01:05]} 7. Bb3 {[%emt 0:00:04]} O-O {[%emt 0:00:42]} 8. Nc3 {[%emt 0:00:14]} d6 {[%emt 0:03:48]} 9. a3 {[%emt 0:00:06]} Be6 {[%emt 0:04:39]} 10. Nd5 {[%emt 0:02:42]} Nd4 {[%emt 0:13:00]} 11. Nxd4 {[%emt 0:02:18]} exd4 {[%emt 0:00:32]} 12. Nxf6+ {[%emt 0:05:48]} Bxf6 {[%emt 0:00:10]} 13. Bxe6 {[%emt 0:00:02]} fxe6 {[%emt 0:00:07]} 14. f4 {[%emt 0:00:20]} c5 {[%emt 0:03:12]} 15. Qg4 {[%emt 0:01:54]} Qd7 {[%emt 0:07:51]} 16. Bd2 {[%emt 0:02:23]} Rae8 {[%emt 0:16:09]} 17. Rae1 {[%emt 0:03:05]} Rf7 {[%emt 0:07:37]} 18. h4 {[%emt 0:01:31]} d5 {[%emt 0:01:37]} 19. h5 {[%emt 0:05:29]} dxe4 {[%emt 0:00:58]} 20. Rxe4 {[%emt 0:00:38]} Qd5 {[%emt 0:00:55]} 21. Rfe1 {[%emt 0:06:29]} Rfe7 {[%emt 0:00:11]} 22. b3 {[%emt 0:01:07]} Kf7 {[%emt 0:03:06]} 23. Qh3 {[%emt 0:01:15]} e5 {[%emt 0:21:54]} 24. f5 {[%emt 0:04:41]} h6 {[%emt 0:00:02]} 25. Qg4 {[%emt 0:00:10]} Kf8 {[%emt 0:00:14]} 26. Rf1 {[%emt 0:02:24]} Rd7 {[%emt 0:00:51]} 27. Rfe1 {[%emt 0:02:34]} Qf7 {[%emt 0:01:34]} 28. Bf4 {[%emt 0:03:15]} Rde7 {[%emt 0:00:34]} 29. Bd2 {[%emt 0:00:31]} Rd7 {[%emt 0:00:22]} 30. Qg6 {[%emt 0:01:27]} Rde7 {[%emt 0:03:45]} 31. Kh2 {[%emt 0:03:38]} Rc7 {[%emt 0:00:12]} 32. g3 {[%emt 0:01:06]} Kg8 {[%emt 0:02:57]} 33. Kh3 {[%emt 0:00:34]} Kf8 {[%emt 0:01:28]} 34. Ba5 {[%emt 0:02:11]} Rb7 {[%emt 0:00:06]} 35. c3 {[%emt 0:03:31]} dxc3 {[%emt 0:06:29]} 36. Bxc3 {[%emt 0:00:05]} Rbe7 {[%emt 0:00:30]} 37. b4 {[%emt 0:00:31]} Qb3 {[%emt 0:00:30]} 38. Bd2 {[%emt 0:00:09]} Qxd3 {[%emt 0:00:30]} 39. Bxh6 {[%emt 0:00:12]} Rf7 {[%emt 0:00:18]} 40. Be3 {[%emt 0:01:24]} c4 {[%emt 0:00:42]} 41. h6 {[%emt 0:00:32]} Rc8 {[%emt 0:00:30]} 42. h7 {[%emt 0:01:07]} Ke7 {[%emt 0:00:28]} 43. Bc5+ {[%emt 0:00:05]} Rxc5 {[%emt 0:00:03]} 44. h8=Q {[%emt 0:00:47]} Rd5 {[%emt 0:00:07]} 45. Rxe5+ {[%emt 0:01:22]} Rxe5 {[%emt 0:00:22]} 46. Rxe5+ {[%emt 0:00:03]} Kd6 {[%emt 0:00:15]} 47. Re1 {[%emt 0:00:48]} Rd7 {[%emt 0:00:36]} 48. Qb8+ {[%emt 0:00:06]} Kd5 {[%emt 0:00:07]} 49. Qbe8 {[%emt 0:00:50]} Rd6 {[%emt 0:00:13]} 50. Qg4 {[%emt 0:01:35]} Be5 {[%emt 0:00:40]} 51. Qxe5+ {[%emt 0:00:33]} Kc6 {[%emt 0:00:19]} 52. Qc5+ {[%emt 0:00:03]} Kb7 {[%emt 0:00:09]} 53. Re7+ {[%emt 0:00:13]} Rd7 {[%emt 0:00:02]} 54. Rxd7+ {[%emt 0:00:12]} Qxd7 {[%emt 0:00:02]} 55. Qe4+ {[%emt 0:00:07]} Kb8 {[%emt 0:00:01]} 56. Qe6 {[%emt 0:00:19]} 1-0

[Event "7th Uppsala Young Champions"]
[Site "Uppsala"]
[Date "2020.10.26"]
[Round "6.8"]
[White "Frank, Adam"]
[Black "Heimisson, Hilmir Freyr"]
[Result "0-1"]
[ECO "B67"]
[WhiteElo "2129"]
[BlackElo "2352"]
[Annotator "ChessBase"]
[PlyCount "132"]
[EventDate "2020.10.23"]
[EventType "swiss"]
[EventCountry "SWE"]
[SourceTitle "playchess.com"]
[Source "ChessBase"]
[SourceQuality "1"]
[TimeControl "5400+30"]

1. e4 {[%emt 0:00:00]} c5 {[%emt 0:00:14]} 2. Nf3 {[%emt 0:00:00]} Nc6 {[%emt 0:00:12]} 3. d4 {[%emt 0:00:00]} cxd4 {[%emt 0:00:08]} 4. Nxd4 {[%emt 0:00:00]} Nf6 {[%emt 0:00:08]} 5. Nc3 {[%emt 0:00:00]} d6 {[%emt 0:00:13]} 6. Bg5 {[%emt 0:00:11]} e6 {[%emt 0:00:15]} 7. Qd2 {[%emt 0:00:18]} a6 {[%emt 0:00:15]} 8. O-O-O {[%emt 0:00:20]} Bd7 {[%emt 0:00:13]} 9. f3 {[%emt 0:01:54]} Be7 {[%emt 0:00:43]} 10. Kb1 {[%emt 0:01:10]} b5 {[%emt 0:09:33]} 11. Nxc6 {[%emt 0:01:59]} Bxc6 {[%emt 0:00:11]} 12. h4 {[%emt 0:00:12]} h6 {[%emt 0:03:33]} 13. Be3 {[%emt 0:01:04]} h5 {[%emt 0:00:11]} 14. Qf2 {[%emt 0:11:00]} Qc7 {[%emt 0:04:19]} 15. Qg3 {[%emt 0:03:45]} b4 {[%emt 0:10:25]} 16. Ne2 {[%emt 0:00:13]} a5 {[%emt 0:00:06]} 17. Nd4 {[%emt 0:02:11]} Rb8 {[%emt 0:04:39]} 18. Bd3 {[%emt 0:28:54]} a4 {[%emt 0:00:50]} 19. Rhe1 {[%emt 0:02:51]} a3 {[%emt 0:28:20]} 20. b3 {[%emt 0:00:33]} O-O {[%emt 0:01:56]} 21. Bc4 {[%emt 0:06:01]} Bd7 {[%emt 0:01:35]} 22. Bh6 {[%emt 0:04:20]} Ne8 {[%emt 0:01:13]} 23. Bc1 {[%emt 0:00:23]} Bf6 {[%emt 0:03:31]} 24. Bg5 {[%emt 0:06:44]} Qc5 {[%emt 0:07:12]} 25. Be3 {[%emt 0:09:32]} Qc8 {[%emt 0:01:48]} 26. Ne2 {[%emt 0:00:54]} Bb5 {[%emt 0:01:45]} 27. Bxb5 {[%emt 0:00:27]} Rxb5 {[%emt 0:00:15]} 28. Bd4 {[%emt 0:00:57]} Bxd4 {[%emt 0:01:33]} 29. Rxd4 {[%emt 0:00:04]} Rc5 {[%emt 0:02:32]} 30. Rc1 {[%emt 0:00:19]} Qa6 {[%emt 0:03:18]} 31. Qe1 {[%emt 0:00:48]} Nf6 {[%emt 0:03:07]} 32. Rxb4 {[%emt 0:01:56]} d5 {[%emt 0:01:16]} 33. e5 {[%emt 0:01:26]} Nd7 {[%emt 0:00:06]} 34. Ra4 {[%emt 0:00:59]} Qb7 {[%emt 0:01:05]} 35. Nd4 {[%emt 0:03:27]} Rc4 {[%emt 0:01:24]} 36. Rxc4 {[%emt 0:01:38]} dxc4 {[%emt 0:00:04]} 37. Qa5 {[%emt 0:00:28]} Ra8 {[%emt 0:04:06]} 38. Qb5 {[%emt 0:00:05]} Nb6 {[%emt 0:00:36]} 39. Qc6 {[%emt 0:02:57]} Qa7 {[%emt 0:00:49]} 40. Qd6 {[%emt 0:02:32]} Nd5 {[%emt 0:01:35]} 41. Nb5 {[%emt 0:02:25]} Qa5 {[%emt 0:01:14]} 42. Qxa3 {[%emt 0:04:00]} Qxa3 {[%emt 0:00:09]} 43. Nxa3 {[%emt 0:00:04]} Rxa3 {[%emt 0:00:06]} 44. Kb2 {[%emt 0:00:08]} Ra5 {[%emt 0:00:47]} 45. bxc4 {[%emt 0:00:04]} Ne3 {[%emt 0:00:54]} 46. Kb3 {[%emt 0:00:15]} Rxe5 {[%emt 0:02:45]} 47. Kb4 {[%emt 0:00:11]} Kf8 {[%emt 0:00:55]} 48. c5 {[%emt 0:01:43]} Ke7 {[%emt 0:00:33]} 49. c4 {[%emt 0:00:30]} Kd7 {[%emt 0:00:34]} 50. Kb5 {[%emt 0:00:08]} Kc7 {[%emt 0:00:26]} 51. Rc3 {[%emt 0:01:10]} Nf5 {[%emt 0:00:16]} 52. Rd3 {[%emt 0:00:42]} Re2 {[%emt 0:01:25]} 53. c6 {[%emt 0:00:05]} Re5+ {[%emt 0:00:21]} 54. c5 {[%emt 0:00:05]} Rd5 {[%emt 0:00:03]} 55. Ra3 {[%emt 0:00:21]} Nd4+ {[%emt 0:00:08]} 56. Kc4 {[%emt 0:00:03]} Nxc6 {[%emt 0:00:06]} 57. Ra8 {[%emt 0:00:03]} Rd4+ {[%emt 0:00:30]} 58. Kc3 {[%emt 0:00:03]} Rxh4 {[%emt 0:00:50]} 59. g3 {[%emt 0:00:16]} Rd4 {[%emt 0:01:00]} 60. a4 {[%emt 0:00:36]} Rd5 {[%emt 0:00:18]} 61. Kc4 {[%emt 0:00:12]} Kb7 {[%emt 0:01:01]} 62. Rf8 {[%emt 0:00:04]} Rf5 {[%emt 0:00:14]} 63. Kb5 {[%emt 0:00:54]} Rxf3 {[%emt 0:00:41]} 64. a5 {[%emt 0:00:03]} Na7+ {[%emt 0:00:34]} 65. Kc4 {[%emt 0:00:20]} h4 {[%emt 0:00:21]} 66. Re8 {[%emt 0:00:12]} hxg3 {[%emt 0:00:35]} 0-1

[Event "7th Uppsala Young Champions"]
[Site "Uppsala"]
[Date "2020.10.26"]
[Round "6.9"]
[White "Johnson, Daniel"]
[Black "Nemec, Jachym"]
[Result "1/2-1/2"]
[ECO "B51"]
[WhiteElo "2100"]
[BlackElo "2246"]
[Annotator "NA"]
[PlyCount "94"]
[EventDate "2020.10.23"]
[EventType "swiss"]
[EventCountry "SWE"]
[SourceTitle "playchess.com"]
[Source "ChessBase"]
[SourceQuality "1"]
[TimeControl "5400+30"]

1. e4 {[%emt 0:06:20]} c5 {[%emt 0:00:00]} 2. Nf3 {[%emt 0:00:06]} d6 {[%emt 0:00:00]} 3. Bb5+ {[%emt 0:00:09]} Nd7 {[%emt 0:00:00]} 4. c3 {[%emt 0:00:18]} Ngf6 {[%emt 0:03:19]} 5. Qe2 {[%emt 0:00:47]} a6 {[%emt 0:00:21]} 6. Ba4 {[%emt 0:00:06]} b5 {[%emt 0:03:26]} 7. Bc2 {[%emt 0:00:08]} c4 {[%emt 0:00:36] B51: Sicilian: Moscow Variation (3 Bb5+) without 3...Bd7.} 8. b3 {[%emt 0:02:31]} cxb3 {[%emt 1:26:18]} 9. axb3 {[%emt 0:00:32]} Bb7 {[%emt 0:00:00] [#]} 10. b4 $146 {[%emt 0:06:35]} ({Predecessor:} 10. d4 e6 11. O-O Be7 12. Nbd2 O-O 13. b4 Rc8 14. Bb2 h6 15. Nb3 Nb6 16. Na5 {0-1 (56) Livaic,L (2507)-Aditya,M (2438) chess.com INT 2020}) 10... e6 {[%emt 0:00:00]} 11. O-O {[%emt 0:03:07]} Be7 {[%emt 0:00:00]} 12. d3 {[%emt 0:02:17]} O-O {[%emt 0:00:00]} 13. Bb2 {[%emt 0:07:01]} Qc7 {[%emt 0:00:00]} 14. Rc1 {[%emt 0:02:05]} e5 {[%emt 0:00:00]} 15. c4 {[%emt 0:06:35]} bxc4 {[%emt 0:00:00]} 16. dxc4 {[%emt 0:05:56]} Rfc8 {[%emt 0:00:00]} 17. Nbd2 {[%emt 0:12:07]} a5 {[%emt 0:00:00]} 18. b5 {[%emt 0:05:13]} Nc5 {[%emt 0:00:00]} 19. g3 {[%emt 0:04:31]} Bd8 {[%emt 0:00:00]} 20. Ne1 {[%emt 0:10:59]} Qe7 {[%emt 0:00:00]} 21. Ng2 {[%emt 0:04:39]} Bb6 {[%emt 0:00:00]} 22. Ne3 {[%emt 0:02:26]} Ne6 {[%emt 0:00:00]} ({Not} 22... Nfxe4 $2 23. Nf5 $18) ({Wrong is} 22... Ncxe4 $2 23. Nxe4 Nxe4 24. Nf5 $18) 23. Nd5 {[%emt 0:05:42]} Bxd5 {[%emt 0:00:00]} 24. exd5 {[%emt 0:01:00]} Bd4 {[%emt 0:00:00]} 25. Rcb1 {[%emt 0:06:49]} (25. Ba3 $5 {[%cal Rd5e6]} Bxa1 26. dxe6 $14) 25... Bxb2 {[%emt 0:00:00]} 26. Rxb2 {[%emt 0:02:20]} Nd4 {[%emt 0:00:00]} 27. Qd3 $11 {[%emt 0:00:43]} g6 {[%emt 0:00:00]} 28. b6 {[%emt 0:00:25]} Rcb8 {[%emt 0:00:00]} 29. Ba4 {[%emt 0:00:24]} Nd7 {[%emt 0:00:00]} 30. b7 {[%emt 0:02:32]} Ra7 {[%emt 0:00:03]} 31. Bc6 {[%emt 0:00:22]} Nc5 {[%emt 0:00:32]} 32. Qb1 {[%emt 0:00:35]} a4 {[%emt 0:03:38]} 33. Ne4 {[%emt 0:00:33]} Nxe4 {[%emt 0:01:54]} 34. Qxe4 {[%emt 0:00:10]} Qc7 {[%emt 0:00:10]} 35. Rba2 {[%emt 0:00:47]} f5 {[%emt 0:00:47]} 36. Qg2 {[%emt 0:00:36]} e4 {[%emt 0:01:40]} 37. Rxa4 {[%emt 0:00:26]} Rxa4 {[%emt 0:00:39]} 38. Rxa4 {[%emt 0:00:36]} Nxc6 {[%emt 0:00:10]} 39. dxc6 {[%emt 0:00:09]} Qxc6 {[%emt 0:00:04]} 40. Ra8 {[%emt 0:00:50]} Rxa8 {[%emt 0:02:07]} 41. bxa8=Q+ {[%emt 0:00:07]} Qxa8 {[%emt 0:00:06]} 42. Qf1 {[%emt 0:00:45]} Qa3 {[%emt 0:00:55]} 43. Qd1 {[%emt 0:00:39]} Qc5 {[%emt 0:00:06]} 44. Qa4 {[%emt 0:00:16]} Qc7 {[%emt 0:02:41]} 45. Qe8+ {[%emt 0:00:14]} Kg7 {[%emt 0:00:08]} 46. Qe6 {[%emt 0:00:04]} Qf7 {[%emt 0:01:38]} 47. Qxd6 {[%emt 0:00:13]} Qxc4 {[%emt 0:00:05]} 1/2-1/2

[Event "7th Uppsala Young Champions"]
[Site "Uppsala"]
[Date "2020.10.26"]
[Round "6.10"]
[White "Mica, Marek"]
[Black "Radeva, Viktoria"]
[Result "1-0"]
[ECO "D36"]
[WhiteElo "2294"]
[BlackElo "2263"]
[Annotator "NA"]
[PlyCount "107"]
[EventDate "2020.10.23"]
[EventType "swiss"]
[EventCountry "SWE"]
[SourceTitle "playchess.com"]
[Source "ChessBase"]
[SourceQuality "1"]
[TimeControl "5400+30"]

{[%evp 8,77,15,20,21,32767,32767,32767,32767,32767,8,32767,32767,32767,32767,-14,-20,-7,0,0,0,-25,-24,-25,-37,-45,-15,-12,-15,-25,0,-24,17,20,79,37,77,57,107,32767,32767,32767,32767,32767,142,114,130,83,32767,32767,89,32767,32767,77,85,74,95,81,77,85,85,32767,122,127,128,126,32767,101,162,97,114,92]} 1. d4 {[%emt 0:00:00]} d5 {[%emt 0:00:00]} 2. c4 {[%emt 0:00:00]} e6 {[%emt 0:00:00]} 3. Nc3 {[%emt 0:00:00]} Nf6 {[%emt 0:00:00]} 4. cxd5 {[%emt 0:00:22]} exd5 {[%emt 0:00:00]} 5. Bg5 {[%emt 0:00:13]} c6 {[%emt 0:00:00]} 6. e3 {[%emt 0:00:07]} Bd6 {[%emt 0:00:07]} 7. Bd3 {[%emt 0:00:47]} O-O {[%emt 0:00:41]} 8. Qc2 {[%emt 0:00:47]} h6 {[%emt 0:00:06]} 9. Bh4 {[%emt 0:00:32]} Nbd7 {[%emt 0:00:35]} 10. Nf3 {[%emt 0:04:55]} Re8 {[%emt 0:00:09]} 11. Bg3 {[%emt 0:02:50]} Bxg3 {[%emt 0:07:10] D36: Queen's Gambit Declined: Exchange Variation: Main line (5 Bg5 c6 6 Qc2).} 12. hxg3 {[%emt 0:00:06]} Qe7 {[%emt 0:00:38]} 13. O-O {[%emt 0:00:54]} Ne4 {[%emt 0:01:13]} 14. Bxe4 {[%emt 0:00:31]} dxe4 {[%emt 0:01:11]} 15. Nd2 {[%emt 0:00:08]} Nf6 {[%emt 0:00:15] [#]} 16. Rab1 $146 {[%emt 0:00:53]} ({Predecessor:} 16. b4 Bf5 17. Qb2 Rad8 18. Rfc1 a6 19. a4 Ng4 20. Nf1 Nf6 21. b5 cxb5 22. axb5 {1-0 (38) Cech,T (2180)-Blaha,P Czechia 1995}) 16... Bf5 {[%emt 0:06:38]} 17. b4 {[%emt 0:01:08]} Ng4 {[%emt 0:04:12]} 18. Rfc1 {[%emt 0:01:58]} h5 {[%emt 0:02:16]} 19. Nf1 {[%emt 0:04:31]} Qg5 {[%emt 0:11:47]} 20. b5 {[%emt 0:03:50]} h4 {[%emt 0:04:38]} (20... Bd7 $11 {keeps the balance.}) 21. Ne2 {[%emt 0:03:44]} Re6 {[%emt 0:08:55]} 22. bxc6 {[%emt 0:02:56]} bxc6 {[%emt 0:00:34]} 23. Rb2 {[%emt 0:04:51]} hxg3 {[%emt 0:21:39]} 24. Nexg3 {[%emt 0:00:22]} Bg6 {[%emt 0:04:51]} 25. Qc5 {[%emt 0:01:47]} Qh4 {[%emt 0:00:41]} 26. Rcb1 {[%emt 0:04:54]} Kh7 {[%emt 0:02:19]} 27. Rb8 {[%emt 0:00:48]} Rxb8 {[%emt 0:01:40]} 28. Rxb8 {[%emt 0:00:06]} Qf6 {[%emt 0:01:22]} 29. Rb2 {[%emt 0:01:02]} Qe7 {[%emt 0:06:38]} 30. Qxe7 {[%emt 0:08:07]} Rxe7 {[%emt 0:00:01]} 31. a4 {[%emt 0:00:33]} Nf6 {[%emt 0:00:43]} 32. Nd2 {[%emt 0:01:39]} Nd5 {[%emt 0:00:43]} 33. Rc2 {[%emt 0:02:22]} Re6 {[%emt 0:01:12]} 34. Nc4 {[%emt 0:03:53]} f6 {[%emt 0:00:50]} 35. Na5 {[%emt 0:01:21]} Be8 {[%emt 0:02:30]} 36. Nb7 {[%emt 0:00:47]} Kg8 {[%emt 0:02:32]} 37. Rc5 {[%emt 0:03:01]} (37. Nc5 $18 {is more deadly.} Re7 38. Nf5) 37... Kf8 {[%emt 0:02:25]} (37... g6 $16) 38. Ra5 {[%emt 0:02:40]} (38. Rc1 $142) 38... Re7 {[%emt 0:00:22]} 39. Nd6 $16 {[%emt 0:08:28]} Bg6 {[%emt 0:01:56]} 40. Rc5 {[%emt 0:06:09]} Re6 {[%emt 0:02:43]} 41. Nb7 {[%emt 0:00:36]} Nb4 {[%emt 0:01:46]} 42. Rc4 {[%emt 0:01:21]} Nd5 {[%emt 0:00:35]} 43. Rc5 {[%emt 0:01:49]} Be8 {[%emt 0:00:51]} 44. Nf5 {[%emt 0:00:52]} Bg6 {[%emt 0:01:28]} 45. Nfd6 {[%emt 0:00:31]} Be8 {[%emt 0:00:44]} 46. Ra5 {[%emt 0:00:18]} Re7 {[%emt 0:00:48]} 47. Rxa7 {[%emt 0:00:36]} Rd7 {[%emt 0:00:25]} 48. a5 {[%emt 0:00:55]} Ke7 {[%emt 0:00:36]} 49. Nc8+ {[%emt 0:00:33]} Kf8 {[%emt 0:00:06]} 50. a6 {[%emt 0:00:16]} Nb4 {[%emt 0:00:56]} 51. Ncd6 {[%emt 0:00:53]} Ke7 {[%emt 0:00:27]} 52. Ra8 {[%emt 0:00:31]} Bf7 {[%emt 0:00:29]} 53. Nf5+ {[%emt 0:00:39]} Ke6 {[%emt 0:00:27]} 54. Nc5+ {[%emt 0:00:13]} 1-0

[Event "7th Uppsala Young Champions"]
[Site "Uppsala"]
[Date "2020.10.26"]
[Round "6.12"]
[White "Hrescak, Ivana"]
[Black "Olsson, William"]
[Result "1/2-1/2"]
[ECO "A08"]
[WhiteElo "2237"]
[BlackElo "2192"]
[Annotator "NA"]
[PlyCount "82"]
[EventDate "2020.10.23"]
[EventType "swiss"]
[EventCountry "SWE"]
[SourceTitle "playchess.com"]
[Source "ChessBase"]
[SourceQuality "1"]
[TimeControl "5400+30"]

{[%evp 11,74,-31,32767,32767,32767,32767,-22,-41,-25,-19,32767,32767,7,-27,11,7,14,14,37,12,0,-40,-29,-42,-8,0,0,-6,-14,-10,0,-18,7,32767,80,0,32767,32767,32767,32767,32767,32767,112,11,66,32767,32767,58,63,56,60,57,137,51,69,32767,140,3,115,56,83,39,32767,40,69]} 1. Nf3 {[%emt 0:00:00]} d5 {[%emt 0:00:00]} 2. g3 {[%emt 0:00:00]} c5 {[%emt 0:00:00]} 3. Bg2 {[%emt 0:00:00]} Nc6 {[%emt 0:00:00]} 4. d3 {[%emt 0:00:02]} Nf6 {[%emt 0:00:21]} 5. O-O {[%emt 0:00:06]} e5 {[%emt 0:01:40]} 6. Nbd2 {[%emt 0:01:09]} Be7 {[%emt 0:01:20]} 7. e4 {[%emt 0:00:22]} O-O {[%emt 0:00:29]} 8. Re1 {[%emt 0:00:49]} d4 {[%emt 0:00:43]} 9. Nc4 {[%emt 0:00:18]} Qc7 {[%emt 0:01:05] A08: King's Indian Attack.} 10. a4 {[%emt 0:00:31]} b6 {[%emt 0:00:36]} 11. Nh4 {[%emt 0:01:39] [#]} Re8 $146 {[%emt 0:10:16]} ({Predecessor:} 11... g6 12. Bh6 Re8 13. h3 Rb8 14. b3 a6 15. Kh2 b5 16. axb5 axb5 17. Nd2 Be6 {0-1 (46) Petrov,P (2095)-Simeonov,S (2370) Sofia 2004}) 12. f4 {[%emt 0:01:45]} Nd7 {[%emt 0:00:46]} 13. Nf5 {[%emt 0:05:12]} Bf8 {[%emt 0:00:50]} 14. Rf1 {[%emt 0:00:22]} a6 {[%emt 0:05:17]} 15. c3 {[%emt 0:06:06]} (15. Qg4 $5 {[%cal Rf5h6]}) 15... Rb8 {[%emt 0:04:53]} 16. cxd4 {[%emt 0:01:04]} cxd4 {[%emt 0:02:04]} 17. Kh1 {[%emt 0:05:57]} b5 {[%emt 0:06:07]} 18. axb5 {[%emt 0:00:10]} axb5 {[%emt 0:01:05]} 19. Nxe5 {[%emt 0:00:12]} Ndxe5 {[%emt 0:00:07]} 20. fxe5 {[%emt 0:00:06]} Nxe5 {[%emt 0:00:18]} 21. Bf4 {[%emt 0:02:04]} Qb6 {[%emt 0:04:08]} 22. Rc1 {[%emt 0:05:10]} Ra8 {[%emt 0:03:59] [#]} (22... Bd7 $11 {keeps the balance.}) 23. Qd2 {[%emt 0:04:09]} (23. Nh6+ $1 $16 gxh6 24. Bxe5) 23... Ng6 {[%emt 0:12:24]} 24. Bc7 {[%emt 0:04:58]} Qa7 {[%emt 0:07:38]} 25. Qf2 {[%emt 0:02:29]} Ne5 {[%emt 0:07:18]} 26. Bxe5 {[%emt 0:05:07]} Rxe5 {[%emt 0:00:15]} 27. Qxd4 {[%emt 0:01:23]} (27. Ra1 $16 Ba6 28. Ra2 (28. Nxd4 f6 $16)) 27... Rxf5 {[%emt 0:02:10]} 28. Qxa7 {[%emt 0:00:13]} Rxf1+ {[%emt 0:00:04]} 29. Bxf1 {[%emt 0:00:05]} Rxa7 {[%emt 0:00:06]} 30. Rxc8 {[%emt 0:00:09]} Ra1 {[%emt 0:01:29]} 31. Kg2 {[%emt 0:03:28]} Ra2 {[%emt 0:00:10] [#]} (31... f6 $14) 32. Rc2 {[%emt 0:17:30]} ({Better is} 32. e5 $1 $16) 32... Ba3 {[%emt 0:00:23]} 33. Kf3 {[%emt 0:00:50]} Rxb2 {[%emt 0:00:41]} ({Black should try} 33... f6 $1 $14) 34. Rc8+ {[%emt 0:08:35]} Bf8 {[%emt 0:00:08] [#]} 35. d4 {[%emt 0:00:59]} ({Better is} 35. e5 $1 $16) 35... Rb3+ {[%emt 0:08:21]} 36. Kf2 {[%emt 0:03:20]} f6 {[%emt 0:06:42]} 37. Rb8 $14 {[%emt 0:04:08]} Kf7 {[%emt 0:00:06]} 38. Bxb5 {[%emt 0:05:23]} Rb4 {[%emt 0:02:29]} 39. Ke3 {[%emt 0:02:41]} Bd6 {[%emt 0:02:52]} 40. Rb7+ {[%emt 0:00:56]} Kf8 {[%emt 0:01:03]} 41. Bc6 {[%emt 0:05:14]} Rxb7 {[%emt 0:01:14]} 1/2-1/2